[Event "*** Titled Tuesday Blitz"]
[Site "Chess.com"]
[Date "2020.05.05"]
[Round "2"]
[White "Gareth-Bale11"]
[Black "AttilaTurzo"]
[Result "1-0"]
[WhiteElo "2753"]
[BlackElo "2518"]
[TimeControl "180+1"]
[EndTime "10:19:28 PDT"]
[Termination "Gareth-Bale11 won by resignation"]

1. d4 {[%clk 0:02:59.8]} 1... Nf6 {[%clk 0:02:59.5]} 2. c4 {[%clk 0:02:57.7]}
2... e6 {[%clk 0:03:00]} 3. Nf3 {[%clk 0:02:56.3]} 3... Bb4+ {[%clk 0:03:00]} 4.
Nbd2 {[%clk 0:02:55.8]} 4... O-O {[%clk 0:02:55.2]} 5. a3 {[%clk 0:02:55]} 5...
Bxd2+ {[%clk 0:02:54.6]} 6. Qxd2 {[%clk 0:02:55.9]} 6... b6 {[%clk 0:02:54.3]}
7. g3 {[%clk 0:02:54.1]} 7... Bb7 {[%clk 0:02:54.5]} 8. Bg2 {[%clk 0:02:54.4]}
8... d6 {[%clk 0:02:55.1]} 9. O-O {[%clk 0:02:54.5]} 9... Nbd7 {[%clk
0:02:55.7]} 10. b4 {[%clk 0:02:53.8]} 10... Qe7 {[%clk 0:02:54.6]} 11. Bb2
{[%clk 0:02:53.8]} 11... c5 {[%clk 0:02:52.6]} 12. Rfd1 {[%clk 0:02:50.4]} 12...
Rfd8 {[%clk 0:02:52.3]} 13. dxc5 {[%clk 0:02:19.9]} 13... dxc5 {[%clk
0:02:50.6]} 14. Qd6 {[%clk 0:02:20.4]} 14... Qxd6 {[%clk 0:02:42]} 15. Rxd6
{[%clk 0:02:21.3]} 15... Ne4 {[%clk 0:02:42]} 16. Rd3 {[%clk 0:02:17.5]} 16...
Ndf6 {[%clk 0:02:29.8]} 17. Ne5 {[%clk 0:02:05.9]} 17... Rxd3 {[%clk 0:02:25.6]}
18. exd3 {[%clk 0:02:01.1]} 18... Nd6 {[%clk 0:02:25.7]} 19. bxc5 {[%clk
0:02:01.3]} 19... bxc5 {[%clk 0:02:23.2]} 20. Bxb7 {[%clk 0:02:01.1]} 20... Nxb7
{[%clk 0:02:24.1]} 21. Bc1 {[%clk 0:01:52.9]} 21... Rc8 {[%clk 0:02:02.4]} 22.
Bf4 {[%clk 0:01:43.6]} 22... Kf8 {[%clk 0:01:59.6]} 23. Rb1 {[%clk 0:01:34.7]}
23... Nd8 {[%clk 0:01:59.5]} 24. Rb5 {[%clk 0:01:31.6]} 24... Ke7 {[%clk
0:01:54.1]} 25. Ra5 {[%clk 0:01:31.4]} 25... Nc6 {[%clk 0:01:43.7]} 26. Rxc5
{[%clk 0:01:23.6]} 26... Kd6 {[%clk 0:01:40.8]} 27. d4 {[%clk 0:01:18.2]} 27...
g5 {[%clk 0:01:33.8]} 28. Be3 {[%clk 0:01:00.1]} 28... Ne4 {[%clk 0:01:28.3]}
29. Rxc6+ {[%clk 0:00:51.2]} 29... Rxc6 {[%clk 0:01:29.2]} 30. Nxc6 {[%clk
0:00:51.3]} 30... Kxc6 {[%clk 0:01:30.1]} 31. Kf1 {[%clk 0:00:48.8]} 31... Nd6
{[%clk 0:01:21.7]} 32. Bxg5 {[%clk 0:00:44]} 32... Nxc4 {[%clk 0:01:21.1]} 33.
Be7 {[%clk 0:00:44.5]} 33... Kd5 {[%clk 0:00:54]} 34. Bc5 {[%clk 0:00:43.4]}
34... a5 {[%clk 0:00:54.6]} 35. Ke2 {[%clk 0:00:41.8]} 35... e5 {[%clk
0:00:54.5]} 36. Kd3 {[%clk 0:00:40.7]} 36... e4+ {[%clk 0:00:51.3]} 37. Kc3
{[%clk 0:00:34.7]} 37... f5 {[%clk 0:00:48.3]} 38. Kb3 {[%clk 0:00:31.8]} 38...
h5 {[%clk 0:00:42.1]} 39. Ka4 {[%clk 0:00:27.2]} 39... Nb2+ {[%clk 0:00:42.1]}
40. Kxa5 {[%clk 0:00:24.6]} 40... Nd3 {[%clk 0:00:42.6]} 41. Kb5 {[%clk
0:00:21.9]} 41... Nxf2 {[%clk 0:00:41.8]} 42. Bb4 {[%clk 0:00:19.1]} 42... Nd3
{[%clk 0:00:39.9]} 43. Bc3 {[%clk 0:00:18.9]} 43... e3 {[%clk 0:00:37.6]} 44. a4
{[%clk 0:00:19.2]} 44... e2 {[%clk 0:00:37.8]} 45. a5 {[%clk 0:00:19.6]} 45...
e1=Q {[%clk 0:00:38.7]} 46. Bxe1 {[%clk 0:00:19.5]} 46... Nxe1 {[%clk
0:00:39.6]} 47. a6 {[%clk 0:00:20]} 47... Nc2 {[%clk 0:00:35.5]} 48. a7 {[%clk
0:00:20.3]} 48... Nxd4+ {[%clk 0:00:35.9]} 49. Ka6 {[%clk 0:00:19.4]} 49... Ne6
{[%clk 0:00:30.9]} 50. a8=Q+ {[%clk 0:00:19.6]} 50... Ke5 {[%clk 0:00:30.5]} 51.
Qh8+ {[%clk 0:00:19.5]} 51... Ke4 {[%clk 0:00:29.4]} 52. Qxh5 {[%clk 0:00:19]}
52... Nd4 {[%clk 0:00:29.7]} 53. Kb6 {[%clk 0:00:18.6]} 53... Nf3 {[%clk
0:00:29.1]} 54. Qe8+ {[%clk 0:00:18.1]} 54... Ne5 {[%clk 0:00:29.2]} 55. h3
{[%clk 0:00:18.2]} 55... Kd5 {[%clk 0:00:27.9]} 56. h4 {[%clk 0:00:18.6]} 56...
Nc4+ {[%clk 0:00:28]} 57. Kc7 {[%clk 0:00:18.8]} 57... Ne5 {[%clk 0:00:27.9]}
58. h5 {[%clk 0:00:18.4]} 58... Ng4 {[%clk 0:00:28.4]} 59. h6 {[%clk 0:00:18.7]}
59... Nxh6 {[%clk 0:00:28.5]} 60. Qg6 {[%clk 0:00:18.7]} 60... Ng4 {[%clk
0:00:26.8]} 61. Qxf5+ {[%clk 0:00:18.9]} 61... Ne5 {[%clk 0:00:27.7]} 62. g4
{[%clk 0:00:19.5]} 62... Kd4 {[%clk 0:00:27.9]} 63. Kd6 {[%clk 0:00:19.9]} 63...
Nc4+ {[%clk 0:00:27.7]} 64. Ke6 {[%clk 0:00:20]} 64... Ne3 {[%clk 0:00:28.6]}
65. Qe5+ {[%clk 0:00:19.6]} 65... Kd3 {[%clk 0:00:28.7]} 66. Qxe3+ {[%clk
0:00:19.6]} 66... Kxe3 {[%clk 0:00:28.6]} 67. g5 {[%clk 0:00:20.5]} 67... Kf4
{[%clk 0:00:29.5]} 68. g6 {[%clk 0:00:21.2]} 68... Ke4 {[%clk 0:00:29.1]} 69. g7
{[%clk 0:00:22.1]} 69... Kd4 {[%clk 0:00:30]} 70. g8=Q {[%clk 0:00:22.5]} 70...
Ke4 {[%clk 0:00:30.9]} 71. Qg4+ {[%clk 0:00:22.4]} 71... Kd3 {[%clk 0:00:30.8]}
72. Kd5 {[%clk 0:00:22.5]} 72... Ke3 {[%clk 0:00:31.7]} 73. Qg3+ {[%clk
0:00:22.7]} 73... Kd2 {[%clk 0:00:31.8]} 74. Kd4 {[%clk 0:00:23]} 74... Ke2
{[%clk 0:00:32.7]} 75. Qg2+ {[%clk 0:00:22.7]} 75... Kd1 {[%clk 0:00:32]} 76.
Kd3 {[%clk 0:00:22.7]} 1-0

[Event "*** Titled Tuesday Blitz"]
[Site "Chess.com"]
[Date "2020.05.05"]
[Round "2"]
[White "Marcin"]
[Black "chessdjw"]
[Result "0-1"]
[WhiteElo "2416"]
[BlackElo "2655"]
[TimeControl "180+1"]
[EndTime "10:19:29 PDT"]
[Termination "chessdjw won by resignation"]

1. d4 {[%clk 0:02:57.2]} 1... Nf6 {[%clk 0:02:59.7]} 2. c4 {[%clk 0:02:57.1]}
2... e6 {[%clk 0:02:59.4]} 3. Nf3 {[%clk 0:02:56.8]} 3... d5 {[%clk 0:02:58.5]}
4. g3 {[%clk 0:02:56.6]} 4... Bb4+ {[%clk 0:02:56.9]} 5. Bd2 {[%clk 0:02:56.3]}
5... Be7 {[%clk 0:02:57.5]} 6. Qc2 {[%clk 0:02:53.6]} 6... O-O {[%clk
0:02:56.6]} 7. Bg2 {[%clk 0:02:53.8]} 7... c6 {[%clk 0:02:55.5]} 8. O-O {[%clk
0:02:54.1]} 8... Nbd7 {[%clk 0:02:55.6]} 9. Bg5 {[%clk 0:02:51.2]} 9... h6
{[%clk 0:02:54.5]} 10. Bxf6 {[%clk 0:02:51.2]} 10... Nxf6 {[%clk 0:02:54.7]} 11.
Nbd2 {[%clk 0:02:48.9]} 11... b6 {[%clk 0:02:52]} 12. Rfd1 {[%clk 0:02:47.9]}
12... Bb7 {[%clk 0:02:51.5]} 13. e4 {[%clk 0:02:48.1]} 13... c5 {[%clk
0:02:40.2]} 14. cxd5 {[%clk 0:02:26.5]} 14... exd5 {[%clk 0:02:38.6]} 15. e5
{[%clk 0:02:27]} 15... Nd7 {[%clk 0:02:37]} 16. Nf1 {[%clk 0:02:26.8]} 16... Rc8
{[%clk 0:02:32.1]} 17. Qe2 {[%clk 0:02:03]} 17... cxd4 {[%clk 0:02:15.3]} 18.
Nxd4 {[%clk 0:01:59.5]} 18... Nc5 {[%clk 0:02:12.4]} 19. Nf5 {[%clk 0:01:46.8]}
19... Ne6 {[%clk 0:01:56.2]} 20. Bxd5 {[%clk 0:01:27]} 20... Bxd5 {[%clk
0:01:55]} 21. Rxd5 {[%clk 0:01:25.7]} 21... Qc7 {[%clk 0:01:55.6]} 22. Nxe7+
{[%clk 0:01:23]} 22... Qxe7 {[%clk 0:01:55.4]} 23. Rad1 {[%clk 0:01:20.3]} 23...
Rc7 {[%clk 0:01:55.8]} 24. Ne3 {[%clk 0:01:17.9]} 24... Rfc8 {[%clk 0:01:54.5]}
25. Qg4 {[%clk 0:00:59.9]} 25... Kh7 {[%clk 0:01:40.3]} 26. Nf5 {[%clk
0:00:44.1]} 26... Qg5 {[%clk 0:01:38.3]} 27. Qxg5 {[%clk 0:00:41.6]} 27... hxg5
{[%clk 0:01:38.9]} 28. Rd7 {[%clk 0:00:32.4]} 28... g4 {[%clk 0:01:33.3]} 29.
Ne3 {[%clk 0:00:26.7]} 29... Kg6 {[%clk 0:01:05.4]} 30. Kg2 {[%clk 0:00:26.4]}
30... Kg5 {[%clk 0:01:02.8]} 31. R1d6 {[%clk 0:00:17.5]} 31... Nc5 {[%clk
0:00:53.7]} 32. Rxc7 {[%clk 0:00:16.7]} 32... Rxc7 {[%clk 0:00:54.6]} 33. Nd5
{[%clk 0:00:17.1]} 33... Rc8 {[%clk 0:00:43.5]} 34. b4 {[%clk 0:00:17.6]} 34...
Ne4 {[%clk 0:00:42.8]} 35. Rd7 {[%clk 0:00:17.9]} 35... Rc2 {[%clk 0:00:42.9]}
36. Rxf7 {[%clk 0:00:18]} 36... Kg6 {[%clk 0:00:30.1]} 37. e6 {[%clk 0:00:17.1]}
37... Ng5 {[%clk 0:00:30.4]} 38. Nf4+ {[%clk 0:00:15.6]} 38... Kh7 {[%clk
0:00:30.3]} 39. Rf5 {[%clk 0:00:14.9]} 39... Nf3 {[%clk 0:00:27.4]} 40. h3
{[%clk 0:00:14.6]} 40... Ne1+ {[%clk 0:00:08.9]} 41. Kf1 {[%clk 0:00:13.1]}
41... Rc1 {[%clk 0:00:09.8]} 42. e7 {[%clk 0:00:10.8]} 42... Nf3+ {[%clk
0:00:07.9]} 43. Ke2 {[%clk 0:00:10.1]} 43... Re1+ {[%clk 0:00:08]} 44. Kd3
{[%clk 0:00:10.5]} 44... Rxe7 {[%clk 0:00:08.7]} 45. hxg4 {[%clk 0:00:10.7]}
45... Ne5+ {[%clk 0:00:08.7]} 46. Kc3 {[%clk 0:00:09.5]} 46... Nxg4 {[%clk
0:00:09.3]} 47. Nd5 {[%clk 0:00:09.1]} 47... Rd7 {[%clk 0:00:07.7]} 48. b5
{[%clk 0:00:08.7]} 48... Kg6 {[%clk 0:00:06.3]} 49. Rf4 {[%clk 0:00:06.6]} 49...
Kg5 {[%clk 0:00:06.2]} 50. f3 {[%clk 0:00:05]} 50... Ne5 {[%clk 0:00:04.8]} 51.
Ne3 {[%clk 0:00:04.5]} 51... Rd3+ {[%clk 0:00:04.7]} 52. Kc2 {[%clk 0:00:02.1]}
52... Rxe3 {[%clk 0:00:05.6]} 53. Rf8 {[%clk 0:00:02.2]} 53... Rxf3 {[%clk
0:00:05.7]} 0-1

[Event "*** Titled Tuesday Blitz"]
[Site "Chess.com"]
[Date "2020.05.05"]
[Round "2"]
[White "MarcoCorvi"]
[Black "SerGo055"]
[Result "1/2-1/2"]
[WhiteElo "2240"]
[BlackElo "2602"]
[TimeControl "180+1"]
[EndTime "10:19:29 PDT"]
[Termination "Game drawn by agreement"]

1. e4 {[%clk 0:03:00.9]} 1... d5 {[%clk 0:02:50.9]} 2. exd5 {[%clk 0:02:59.9]}
2... Qxd5 {[%clk 0:02:51.7]} 3. Nc3 {[%clk 0:02:57.6]} 3... Qd8 {[%clk
0:02:51.5]} 4. d4 {[%clk 0:02:56.5]} 4... Nf6 {[%clk 0:02:51.4]} 5. Bc4 {[%clk
0:02:52.9]} 5... c6 {[%clk 0:02:50.5]} 6. Nf3 {[%clk 0:02:40.7]} 6... Bf5 {[%clk
0:02:50]} 7. Be3 {[%clk 0:02:33.1]} 7... e6 {[%clk 0:02:49.3]} 8. Qd2 {[%clk
0:02:24.4]} 8... Nd5 {[%clk 0:02:44.9]} 9. Nxd5 {[%clk 0:02:22]} 9... cxd5
{[%clk 0:02:44.5]} 10. Bb5+ {[%clk 0:02:21.8]} 10... Nc6 {[%clk 0:02:44]} 11.
Ne5 {[%clk 0:02:19.3]} 11... Rc8 {[%clk 0:02:37]} 12. Nxc6 {[%clk 0:02:12.8]}
12... bxc6 {[%clk 0:02:35.9]} 13. Bd3 {[%clk 0:02:10]} 13... Bg6 {[%clk
0:02:35.1]} 14. O-O {[%clk 0:02:09.2]} 14... Bd6 {[%clk 0:02:33.2]} 15. h3
{[%clk 0:01:58.6]} 15... O-O {[%clk 0:02:32]} 16. Bxg6 {[%clk 0:01:56.8]} 16...
hxg6 {[%clk 0:02:31.4]} 17. Bf4 {[%clk 0:01:57.3]} 17... c5 {[%clk 0:02:30.4]}
18. Bxd6 {[%clk 0:01:50.8]} 18... Qxd6 {[%clk 0:02:31.3]} 19. dxc5 {[%clk
0:01:51]} 19... Rxc5 {[%clk 0:02:25.8]} 20. c3 {[%clk 0:01:50.8]} 20... Rb8
{[%clk 0:02:24.9]} 21. Rfe1 {[%clk 0:01:48.6]} 21... Qb6 {[%clk 0:02:23]} 22.
Re2 {[%clk 0:01:47.2]} 22... a5 {[%clk 0:02:22.9]} 23. Rd1 {[%clk 0:01:39.2]}
23... a4 {[%clk 0:02:22]} 24. Qd4 {[%clk 0:01:35.9]} 24... Qa6 {[%clk
0:02:15.1]} 25. Rxe6 {[%clk 0:01:21.8]} 25... Qxe6 {[%clk 0:01:58.1]} 26. Qxc5
{[%clk 0:01:20.9]} 26... Rxb2 {[%clk 0:01:58.5]} 27. Qxd5 {[%clk 0:01:18.5]}
27... Qe2 {[%clk 0:01:46.8]} 28. Qd8+ {[%clk 0:01:17.5]} 28... Kh7 {[%clk
0:01:44.6]} 29. Qh4+ {[%clk 0:01:17.6]} 29... Qh5 {[%clk 0:01:41.2]} 30. Qxh5+
{[%clk 0:01:09.3]} 30... gxh5 {[%clk 0:01:42.1]} 31. Rd5 {[%clk 0:01:06]} 31...
Kg6 {[%clk 0:01:36.3]} 32. Ra5 {[%clk 0:00:57.5]} 32... Rxa2 {[%clk 0:01:35.5]}
33. c4 {[%clk 0:00:53.8]} 33... h4 {[%clk 0:01:27.4]} 34. c5 {[%clk 0:00:52.8]}
34... Kf6 {[%clk 0:01:20]} 35. c6 {[%clk 0:00:47.6]} 35... Ke7 {[%clk
0:01:19.4]} 36. c7 {[%clk 0:00:45.6]} 36... Kd7 {[%clk 0:01:19.2]} 37. Ra7
{[%clk 0:00:29.1]} 37... Ra1+ {[%clk 0:01:14]} 38. Kh2 {[%clk 0:00:28.5]} 38...
a3 {[%clk 0:01:13.8]} 39. c8=Q+ {[%clk 0:00:19.7]} 39... Kxc8 {[%clk 0:01:13.4]}
40. Rxf7 {[%clk 0:00:20.4]} 40... a2 {[%clk 0:01:13.4]} 41. Ra7 {[%clk
0:00:19.5]} 41... Kb8 {[%clk 0:01:13.1]} 42. Ra3 {[%clk 0:00:19.1]} 42... Kc7
{[%clk 0:01:12.6]} 43. f3 {[%clk 0:00:19.2]} 43... Kd6 {[%clk 0:01:11.9]} 44.
Ra4 {[%clk 0:00:19.5]} 44... g5 {[%clk 0:01:11.8]} 45. Ra6+ {[%clk 0:00:19.4]}
45... Kc5 {[%clk 0:01:11.6]} 46. Ra3 {[%clk 0:00:19.9]} 46... Kb4 {[%clk
0:01:11.5]} 47. Ra8 {[%clk 0:00:20.2]} 47... Kb3 {[%clk 0:01:11.4]} 48. Rb8+
{[%clk 0:00:20.3]} 48... Kc3 {[%clk 0:01:10.9]} 49. Rc8+ {[%clk 0:00:20.6]}
49... Kd2 {[%clk 0:01:09.7]} 50. Rd8+ {[%clk 0:00:20.6]} 50... Ke3 {[%clk
0:01:09.7]} 51. Ra8 {[%clk 0:00:20.4]} 51... Kf2 {[%clk 0:01:09.7]} 52. Ra3
{[%clk 0:00:18.4]} 52... Ke2 {[%clk 0:01:04.5]} 53. Ra4 {[%clk 0:00:18.2]} 53...
Kd3 {[%clk 0:01:03.8]} 54. Ra8 {[%clk 0:00:18.3]} 54... Kc4 {[%clk 0:01:03.3]}
55. Ra7 {[%clk 0:00:18.5]} 55... Kb5 {[%clk 0:01:03.5]} 56. Ra8 {[%clk
0:00:17.8]} 56... Kc5 {[%clk 0:01:01.2]} 57. Ra7 {[%clk 0:00:17.2]} 57... Kb6
{[%clk 0:00:58.6]} 58. Ra8 {[%clk 0:00:17.3]} 58... Kb7 {[%clk 0:00:56.6]} 59.
Ra3 {[%clk 0:00:16.7]} 59... Kc6 {[%clk 0:00:56.9]} 60. Ra8 {[%clk 0:00:15.8]}
60... Kd5 {[%clk 0:00:57.8]} 61. Ra7 {[%clk 0:00:15.1]} 61... Kc4 {[%clk
0:00:57.8]} 62. Ra8 {[%clk 0:00:15.1]} 62... Kb3 {[%clk 0:00:57.7]} 63. Rb8+
{[%clk 0:00:15.2]} 63... Kc2 {[%clk 0:00:57.7]} 64. Rc8+ {[%clk 0:00:15.1]}
64... Kd2 {[%clk 0:00:48.7]} 65. Rd8+ {[%clk 0:00:14.6]} 65... Ke2 {[%clk
0:00:44.4]} 66. Re8+ {[%clk 0:00:14.3]} 66... Kf1 {[%clk 0:00:27.5]} 67. Ra8
{[%clk 0:00:13.8]} 1/2-1/2

[Event "*** Titled Tuesday Blitz"]
[Site "Chess.com"]
[Date "2020.05.05"]
[Round "2"]
[White "jfriedel"]
[Black "BilodeauA"]
[Result "1/2-1/2"]
[WhiteElo "2572"]
[BlackElo "2896"]
[TimeControl "180+1"]
[EndTime "10:19:30 PDT"]
[Termination "Game drawn by agreement"]

1. d4 {[%clk 0:03:00.9]} 1... d5 {[%clk 0:02:59.9]} 2. c4 {[%clk 0:03:00.5]}
2... dxc4 {[%clk 0:03:00.8]} 3. e3 {[%clk 0:03:00.2]} 3... e5 {[%clk 0:03:00.5]}
4. Bxc4 {[%clk 0:02:54.8]} 4... Nc6 {[%clk 0:03:00.4]} 5. Nf3 {[%clk 0:02:52.2]}
5... e4 {[%clk 0:03:00.4]} 6. Nfd2 {[%clk 0:02:47.3]} 6... Qg5 {[%clk 0:03:01]}
7. Qb3 {[%clk 0:02:20]} 7... Qxg2 {[%clk 0:02:56.5]} 8. Bxf7+ {[%clk 0:02:17.7]}
8... Kd8 {[%clk 0:02:54.7]} 9. Rf1 {[%clk 0:02:16.1]} 9... Nf6 {[%clk
0:02:49.8]} 10. Nc3 {[%clk 0:02:13.4]} 10... Bd6 {[%clk 0:02:48.7]} 11. a3
{[%clk 0:01:55.3]} 11... Rf8 {[%clk 0:02:46.5]} 12. Be6 {[%clk 0:01:54.7]} 12...
Bxh2 {[%clk 0:02:16.9]} 13. Bxc8 {[%clk 0:01:49.3]} 13... Rxc8 {[%clk
0:02:02.2]} 14. Ncxe4 {[%clk 0:01:35.1]} 14... Re8 {[%clk 0:01:47.5]} 15. Qxb7
{[%clk 0:01:12.4]} 15... Nxd4 {[%clk 0:01:35.7]} 16. Nd6 {[%clk 0:00:47.7]}
16... Qxb7 {[%clk 0:00:55.2]} 17. Nxb7+ {[%clk 0:00:47.4]} 17... Kd7 {[%clk
0:00:55.9]} 18. Kd1 {[%clk 0:00:47.9]} 18... Ne6 {[%clk 0:00:52.7]} 19. b4
{[%clk 0:00:40.9]} 19... Be5 {[%clk 0:00:50.8]} 20. Ra2 {[%clk 0:00:38.9]} 20...
g5 {[%clk 0:00:48.6]} 21. Nf3 {[%clk 0:00:37.5]} 21... Bd6 {[%clk 0:00:38.3]}
22. Rd2 {[%clk 0:00:33.7]} 22... Ne4 {[%clk 0:00:38]} 23. Rd3 {[%clk 0:00:28.4]}
23... Rf8 {[%clk 0:00:32.4]} 24. Ke2 {[%clk 0:00:22.5]} 24... Ke7 {[%clk
0:00:30]} 25. Bb2 {[%clk 0:00:20.6]} 25... Rf5 {[%clk 0:00:27.2]} 26. Nd2 {[%clk
0:00:19.7]} 26... Nxd2 {[%clk 0:00:26.2]} 27. Rxd2 {[%clk 0:00:20.3]} 27... Rcf8
{[%clk 0:00:26.7]} 28. Na5 {[%clk 0:00:19.5]} 28... h5 {[%clk 0:00:25.8]} 29.
Nc6+ {[%clk 0:00:19.8]} 29... Kd7 {[%clk 0:00:26]} 30. Nd4 {[%clk 0:00:20.5]}
30... Nxd4+ {[%clk 0:00:25.4]} 31. Bxd4 {[%clk 0:00:21.4]} 31... a6 {[%clk
0:00:21.7]} 32. Kd3 {[%clk 0:00:20.2]} 32... h4 {[%clk 0:00:21.5]} 33. Rg1
{[%clk 0:00:19.8]} 33... h3 {[%clk 0:00:21.4]} 34. Rh1 {[%clk 0:00:18.8]} 34...
g4 {[%clk 0:00:18.9]} 35. e4 {[%clk 0:00:18.4]} 35... Rf3+ {[%clk 0:00:19.1]}
36. Be3 {[%clk 0:00:18.8]} 36... g3 {[%clk 0:00:15.8]} 37. Rxh3 {[%clk
0:00:17.1]} 37... g2 {[%clk 0:00:15.7]} 38. Rh7+ {[%clk 0:00:17.3]} 38... R8f7
{[%clk 0:00:14.5]} 39. Rxf7+ {[%clk 0:00:17.6]} 39... Rxf7 {[%clk 0:00:14.8]}
40. Rd1 {[%clk 0:00:17.9]} 40... Bh2 {[%clk 0:00:13.5]} 41. f4 {[%clk
0:00:16.6]} 41... Kc6 {[%clk 0:00:10.8]} 42. Ke2 {[%clk 0:00:15.6]} 42... Bxf4
{[%clk 0:00:10.3]} 43. Rg1 {[%clk 0:00:14.8]} 43... Bxe3 {[%clk 0:00:07.9]} 44.
Kxe3 {[%clk 0:00:15.7]} 44... Rh7 {[%clk 0:00:06.2]} 45. Rxg2 {[%clk 0:00:14.4]}
45... Rh3+ {[%clk 0:00:06.9]} 46. Kd4 {[%clk 0:00:14.7]} 46... Rxa3 {[%clk
0:00:07.8]} 47. Rg5 {[%clk 0:00:14.5]} 47... Rb3 {[%clk 0:00:07.4]} 48. Kc4
{[%clk 0:00:14.6]} 48... Re3 {[%clk 0:00:07.8]} 49. Kd4 {[%clk 0:00:15]} 49...
Re1 {[%clk 0:00:08.7]} 50. Kc4 {[%clk 0:00:14.6]} 50... Kb6 {[%clk 0:00:09]} 51.
Rg6+ {[%clk 0:00:14.4]} 51... c6 {[%clk 0:00:09.6]} 52. Re6 {[%clk 0:00:14.8]}
52... Rc1+ {[%clk 0:00:10.1]} 53. Kb3 {[%clk 0:00:14.6]} 53... Rb1+ {[%clk
0:00:09.8]} 54. Kc3 {[%clk 0:00:15]} 54... Re1 {[%clk 0:00:10.2]} 55. Re7 {[%clk
0:00:14.5]} 55... Kb5 {[%clk 0:00:09.9]} 56. Rb7+ {[%clk 0:00:13.4]} 56... Ka4
{[%clk 0:00:10.5]} 57. Rb6 {[%clk 0:00:13.1]} 57... Re3+ {[%clk 0:00:10.7]} 58.
Kc4 {[%clk 0:00:08.6]} 58... Rxe4+ {[%clk 0:00:10.5]} 59. Kc5 {[%clk 0:00:08.9]}
59... Re5+ {[%clk 0:00:05.8]} 60. Kc4 {[%clk 0:00:07.4]} 60... Re4+ {[%clk
0:00:05.1]} 61. Kc5 {[%clk 0:00:07.3]} 61... Re5+ {[%clk 0:00:05.8]} 62. Kc4
{[%clk 0:00:07.5]} 62... a5 {[%clk 0:00:06.4]} 63. bxa5 {[%clk 0:00:06.3]}
1/2-1/2

[Event "*** Titled Tuesday Blitz"]
[Site "Chess.com"]
[Date "2020.05.05"]
[Round "2"]
[White "Olga_Zhuravleva"]
[Black "AminMolaei"]
[Result "0-1"]
[WhiteElo "2274"]
[BlackElo "2509"]
[TimeControl "180+1"]
[EndTime "10:19:30 PDT"]
[Termination "AminMolaei won on time"]

1. e4 {[%clk 0:03:00.9]} 1... c5 {[%clk 0:02:57.4]} 2. Nf3 {[%clk 0:03:00.4]}
2... g6 {[%clk 0:02:56.5]} 3. d4 {[%clk 0:03:00.6]} 3... cxd4 {[%clk 0:02:57.4]}
4. Nxd4 {[%clk 0:03:01.2]} 4... Nc6 {[%clk 0:02:57.7]} 5. Nc3 {[%clk 0:03:01.3]}
5... Bg7 {[%clk 0:02:57.4]} 6. Nb3 {[%clk 0:03:02]} 6... Nf6 {[%clk 0:02:56.7]}
7. Be2 {[%clk 0:03:02.1]} 7... O-O {[%clk 0:02:56.2]} 8. O-O {[%clk 0:03:02.6]}
8... d6 {[%clk 0:02:54.9]} 9. Re1 {[%clk 0:03:02.2]} 9... a5 {[%clk 0:02:55.2]}
10. a4 {[%clk 0:03:01.2]} 10... Be6 {[%clk 0:02:55.1]} 11. Bf1 {[%clk
0:03:00.5]} 11... Rc8 {[%clk 0:02:55.3]} 12. Bg5 {[%clk 0:02:58.8]} 12... Nb4
{[%clk 0:02:55]} 13. f4 {[%clk 0:02:46]} 13... Bc4 {[%clk 0:02:53.5]} 14. Bxc4
{[%clk 0:02:36.5]} 14... Rxc4 {[%clk 0:02:54.4]} 15. Rc1 {[%clk 0:02:31.1]}
15... Qb6+ {[%clk 0:02:49.6]} 16. Kh1 {[%clk 0:02:30.3]} 16... Rfc8 {[%clk
0:02:49.4]} 17. Nd2 {[%clk 0:02:17.2]} 17... Rxc3 {[%clk 0:02:33.8]} 18. bxc3
{[%clk 0:02:15.9]} 18... Rxc3 {[%clk 0:02:34.7]} 19. e5 {[%clk 0:02:00.3]} 19...
dxe5 {[%clk 0:02:25.8]} 20. fxe5 {[%clk 0:02:00.8]} 20... Nfd5 {[%clk
0:02:26.1]} 21. Ne4 {[%clk 0:02:00.3]} 21... Rc4 {[%clk 0:02:20.9]} 22. Qe2
{[%clk 0:01:53.2]} 22... Qc7 {[%clk 0:02:13.9]} 23. c3 {[%clk 0:01:28.9]} 23...
Na6 {[%clk 0:02:05.4]} 24. Qd3 {[%clk 0:01:21.2]} 24... e6 {[%clk 0:01:46.2]}
25. Nf6+ {[%clk 0:01:20.8]} 25... Nxf6 {[%clk 0:01:38.5]} 26. Bxf6 {[%clk
0:01:20]} 26... Bf8 {[%clk 0:01:37.4]} 27. h3 {[%clk 0:01:16.9]} 27... Nb4
{[%clk 0:01:36.7]} 28. Qd8 {[%clk 0:01:06.6]} 28... Qxd8 {[%clk 0:01:29.4]} 29.
Bxd8 {[%clk 0:01:07.5]} 29... Nd3 {[%clk 0:01:29.9]} 30. Red1 {[%clk 0:01:00.5]}
30... Nxc1 {[%clk 0:01:23.4]} 31. Rxc1 {[%clk 0:01:00.1]} 31... Rxa4 {[%clk
0:01:23.7]} 32. Rb1 {[%clk 0:00:58.9]} 32... Bh6 {[%clk 0:01:01.2]} 33. g3
{[%clk 0:00:50.4]} 33... Bg7 {[%clk 0:00:53.7]} 34. Bc7 {[%clk 0:00:43.2]} 34...
Rc4 {[%clk 0:00:52.9]} 35. Rxb7 {[%clk 0:00:40.2]} 35... h5 {[%clk 0:00:50]} 36.
Rb8+ {[%clk 0:00:20.3]} 36... Kh7 {[%clk 0:00:49.2]} 37. Bxa5 {[%clk 0:00:20.4]}
37... Bxe5 {[%clk 0:00:46.8]} 38. Rb7 {[%clk 0:00:21]} 38... Kg7 {[%clk
0:00:47]} 39. Kg2 {[%clk 0:00:21.3]} 39... Ra4 {[%clk 0:00:46.8]} 40. Bb4 {[%clk
0:00:20.8]} 40... Ra2+ {[%clk 0:00:47.2]} 41. Kf3 {[%clk 0:00:21.2]} 41... Ra1
{[%clk 0:00:45.1]} 42. Rd7 {[%clk 0:00:20.3]} 42... Rf1+ {[%clk 0:00:44.3]} 43.
Kg2 {[%clk 0:00:19.6]} 43... Rc1 {[%clk 0:00:43.2]} 44. Rd3 {[%clk 0:00:18.7]}
44... g5 {[%clk 0:00:41]} 45. Re3 {[%clk 0:00:17.8]} 45... Bf6 {[%clk
0:00:39.9]} 46. Bc5 {[%clk 0:00:15.7]} 46... Rxc3 {[%clk 0:00:38.8]} 47. Rxc3
{[%clk 0:00:14.2]} 47... Bxc3 {[%clk 0:00:39.7]} 48. Be3 {[%clk 0:00:14.7]}
48... Kg6 {[%clk 0:00:39.4]} 49. Kf3 {[%clk 0:00:15]} 49... f5 {[%clk
0:00:39.4]} 50. Bc1 {[%clk 0:00:13.5]} 50... Be5 {[%clk 0:00:39.3]} 51. g4
{[%clk 0:00:11.2]} 51... Bf4 {[%clk 0:00:28.5]} 52. gxf5+ {[%clk 0:00:07.7]}
52... Kxf5 {[%clk 0:00:26.4]} 53. Bb2 {[%clk 0:00:07.3]} 53... e5 {[%clk
0:00:25.8]} 54. Bc3 {[%clk 0:00:06.3]} 54... g4+ {[%clk 0:00:25.8]} 55. Kg2
{[%clk 0:00:05.9]} 55... Ke4 {[%clk 0:00:24.7]} 56. Be1 {[%clk 0:00:04.9]} 56...
Kd3 {[%clk 0:00:24]} 57. Bh4 {[%clk 0:00:04.3]} 57... e4 {[%clk 0:00:24]} 58.
Kf2 {[%clk 0:00:03.6]} 58... Kd2 {[%clk 0:00:22.4]} 59. hxg4 {[%clk 0:00:03.5]}
59... hxg4 {[%clk 0:00:21.5]} 60. Kf1 {[%clk 0:00:02.5]} 60... g3 {[%clk
0:00:21.2]} 61. Kg2 {[%clk 0:00:01.2]} 61... e3 {[%clk 0:00:21.2]} 0-1